bitfinex/quotes_BTCUSD_20250218
["timestamp","ask_amount","ask_price","bid_price","bid_amount"]
[1739915134503,0.00013197,95141.0,95130.0,0.0181703]
[1739915134732,0.00013197,95141.0,95130.0,0.10250365]
[1739915135133,0.0212833,95140.0,95130.0,0.10250365]
[1739915135874,0.00113197,95141.0,95130.0,0.12067395]
[1739915136110,0.0164768,95138.0,95130.0,0.12067395]
[1739915136964,0.0164768,95138.0,95130.0,0.10250365]
[1739915137160,0.0164768,95138.0,95134.0,0.018]
[1739915137365,0.0164768,95138.0,95137.0,0.1938373]
[1739915137566,0.0164768,95138.0,95137.0,0.29634095]
[1739915138871,0.0164768,95138.0,95137.0,0.29734095]
[1739915141445,0.01638425,95138.0,95137.0,0.29734095]
[1739915141646,0.01638425,95138.0,95137.0,0.55014095]
[1739915141829,0.00428835,95208.0,95161.0,0.157626]
[1739915142030,0.157603,95176.0,95160.0,0.1881857]
[1739915142186,0.00013193,95175.0,95162.0,0.157624]
[1739915142390,0.00013193,95175.0,95165.0,0.019]
[1739915143008,0.00013193,95175.0,95167.0,0.02]
[1739915144104,0.00313193,95175.0,95167.0,0.02]
[1739915145479,0.01647139,95174.0,95167.0,0.02]
[1739915147239,0.01847139,95174.0,95167.0,0.02]
[1739915150096,0.17607839,95174.0,95167.0,0.02]
[1739915150306,0.17607839,95174.0,95147.0,0.0486]
[1739915150307,0.01847139,95174.0,95147.0,0.0486]
[1739915150519,0.0774,95173.0,95148.0,0.039]
[1739915150732,0.15,95170.0,95135.0,0.02]
[1739915150989,0.15,95170.0,95111.0,0.008073]
[1739915150990,0.00776408,95156.0,95134.0,0.02]
[1739915151168,0.02072952,95149.0,95133.0,0.02]
[1739915151385,0.21021,95143.0,95133.0,0.02]
[1739915151596,0.157659,95142.0,95133.0,0.02]
[1739915151801,0.15766,95141.0,95133.0,0.02]
[1739915152238,0.21021,95143.0,95133.0,0.02]
[1739915152454,0.157667,95138.0,95133.0,0.02]
[1739915152678,0.157667,95138.0,95120.0,0.210258]
[1739915152679,0.15768,95129.0,95121.0,0.019]
[1739915152889,0.15768,95129.0,95128.0,0.00030217]
[1739915153961,0.15768,95129.0,95128.0,0.00330217]
[1739915154177,0.3761659,95129.0,95128.0,0.00330217]
[1739915154841,0.3183507,95129.0,95128.0,0.00330217]
[1739915155901,0.34703719,95129.0,95128.0,0.00330217]
[1739915156131,0.34703719,95129.0,95128.0,0.00030217]
[1739915157401,0.43800815,95129.0,95128.0,0.00030217]
[1739915157847,0.44100815,95129.0,95128.0,0.00030217]
[1739915158059,0.48620815,95129.0,95128.0,0.00030217]
[1739915158497,0.15,95121.0,95089.0,0.02]
[1739915158763,0.15,95121.0,95076.0,0.0481]
[1739915158764,0.0774,95118.0,95096.0,0.00044009]
[1739915158973,0.307733,95097.0,95096.0,0.00044009]
[1739915160469,0.32421712,95097.0,95096.0,0.00044009]
[1739915160692,0.32721712,95097.0,95096.0,0.00044009]
[1739915161333,0.34342405,95097.0,95096.0,0.00044009]
[1739915161996,0.35409475,95097.0,95096.0,0.00044009]
[1739915162204,0.53285761,95097.0,95096.0,0.00044009]
[1739915162624,0.49106984,95097.0,95096.0,0.00044009]
[1739915163031,0.48806984,95097.0,95096.0,0.00078049]
[1739915163450,0.49006984,95097.0,95096.0,0.00078049]
[1739915163658,0.48806984,95097.0,95096.0,0.00078049]
[1739915164087,0.49006984,95097.0,95096.0,0.00078049]
[1739915164658,0.307765,95078.0,95077.0,0.0001703]
[1739915164862,0.3184357,95078.0,95077.0,0.00030238]
[1739915165327,0.39574563,95078.0,95077.0,0.00030238]
[1739915165484,0.46203336,95078.0,95077.0,0.00030238]
[1739915165679,0.53943336,95078.0,95077.0,0.00030238]
[1739915166075,0.59320911,95078.0,95077.0,0.00030238]
[1739915166548,0.15,95077.0,95064.0,0.0003404]
[1739915166755,0.307786,95065.0,95064.0,0.0003404]
[1739915166960,0.3184567,95065.0,95064.0,0.0003404]
[1739915167165,0.39648577,95065.0,95064.0,0.0003404]
[1739915167397,0.41297669,95065.0,95064.0,0.0003404]
[1739915168455,0.33494762,95065.0,95064.0,0.0003404]
[1739915168611,0.34269941,95065.0,95064.0,0.0003404]
[1739915169144,0.34669941,95065.0,95064.0,0.0003404]
[1739915169976,0.34269941,95065.0,95064.0,0.0003404]
[1739915170183,0.34769941,95065.0,95064.0,0.0003404]
[1739915170429,0.02716162,95065.0,95064.0,0.0003404]
[1739915170644,0.18494762,95065.0,95064.0,0.0003404]
[1739915170821,0.18794762,95065.0,95064.0,0.0003404]
[1739915171158,0.18494762,95065.0,95064.0,0.0003404]
[1739915171412,0.41297669,95065.0,95064.0,0.0003404]
[1739915171821,0.2864194,95065.0,95064.0,0.0003404]
[1739915172021,0.30291027,95065.0,95064.0,0.0003404]
[1739915172238,0.2864194,95065.0,95064.0,0.0003404]
[1739915172446,0.2884194,95065.0,95064.0,0.0003404]
[1739915172860,0.2864194,95065.0,95064.0,0.0003404]
[1739915173074,0.2914194,95065.0,95064.0,0.0003404]
[1739915173679,0.307811,95050.0,95049.0,0.0001703]
[1739915173925,0.3079177,95050.0,95049.0,0.0001703]
[1739915175298,0.34579247,95050.0,95049.0,0.0001703]
[1739915176548,0.35179247,95050.0,95049.0,0.0001703]
[1739915177106,0.42905392,95050.0,95049.0,0.0001703]
[1739915177308,0.35179247,95050.0,95049.0,0.0001703]
[1739915178049,0.20179247,95050.0,95049.0,0.0001703]
[1739915178565,0.02249379,95050.0,95049.0,0.0201703]
[1739915178771,0.02249379,95050.0,95049.0,0.1779833]
[1739915178976,0.01649379,95050.0,95049.0,0.0201703]
[1739915179400,0.01949379,95050.0,95049.0,0.0001703]
[1739915179578,0.17430479,95050.0,95049.0,0.0001703]
[1739915180667,0.17441149,95050.0,95049.0,0.0001703]
[1739915181053,0.23393454,95050.0,95049.0,0.0001703]
[1739915181890,0.23393454,95050.0,95049.0,0.0011703]
[1739915182152,0.23393454,95050.0,95049.0,0.0001703]
[1739915182153,0.38393454,95050.0,95049.0,0.0001703]
[1739915182322,0.36744075,95050.0,95049.0,0.0001703]
[1739915182528,0.36744075,95050.0,95049.0,0.0011703]
[1739915182730,0.3079177,95050.0,95049.0,0.0011703]
[1739915183281,0.3079177,95050.0,95049.0,0.0001703]
[1739915183440,0.157811,95050.0,95049.0,0.0001703]
[1739915183645,0.161811,95050.0,95049.0,0.0001703]
[1739915183845,0.157811,95050.0,95049.0,0.0001703]
[1739915184019,0.2157808,95050.0,95049.0,0.0001703]
[1739915184448,0.157808,95053.0,95049.0,0.0001703]
[1739915184643,0.210362,95075.0,95049.0,0.0001703]
[1739915184644,0.210362,95075.0,95050.0,0.0822]
[1739915184847,0.15781,95051.0,95050.0,0.0822]
[1739915185598,0.17430145,95051.0,95050.0,0.0822]
[1739915185791,0.17430145,95051.0,95050.0,0.0802]
[1739915186294,0.01749145,95051.0,95050.0,0.0802]
[1739915186549,0.01749145,95051.0,95050.0,0.42461465]
[1739915186753,0.01749145,95051.0,95050.0,0.1443]
[1739915186754,0.01649145,95051.0,95050.0,0.1443]
[1739915186971,0.17430145,95051.0,95050.0,0.0802]
[1739915187175,0.157811,95050.0,95049.0,0.0001703]
[1739915187782,0.307811,95050.0,95049.0,0.0001703]
[1739915189798,0.310811,95050.0,95049.0,0.0001703]
[1739915192313,0.31858699,95050.0,95049.0,0.0001703]
[1739915194113,0.310811,95050.0,95049.0,0.0001703]
[1739915194708,0.307811,95050.0,95049.0,0.0001703]
[1739915194923,0.309811,95050.0,95049.0,0.0001703]
[1739915195769,0.01310058,95050.0,95049.0,0.0001703]
[1739915195978,0.002,95050.0,95049.0,0.0001703]
[1739915196358,0.161811,95050.0,95049.0,0.0001703]
[1739915196568,0.004,95050.0,95049.0,0.0001703]
[1739915196807,0.161811,95050.0,95049.0,0.0001703]
[1739915197654,0.157811,95050.0,95049.0,0.0001703]
[1739915198054,0.20605887,95053.0,95049.0,0.0001703]
[1739915198261,0.157811,95050.0,95049.0,0.0001703]
[1739915198867,0.21523909,95050.0,95049.0,0.0001703]
[1739915199062,0.158088,95050.0,95049.0,0.0001703]
[1739915199646,0.308088,95050.0,95049.0,0.0011703]
[1739915199842,0.31596766,95050.0,95049.0,0.0001703]
[1739915200282,0.31896766,95050.0,95049.0,0.0001703]
[1739915201037,0.308088,95050.0,95049.0,0.0001703]
[1739915201417,0.310088,95050.0,95049.0,0.0001703]
[1739915201650,0.308088,95050.0,95049.0,0.0001703]
[1739915202073,0.15,95051.0,95049.0,0.0001703]
[1739915202428,0.157811,95050.0,95049.0,0.0001703]
[1739915202987,0.160811,95050.0,95049.0,0.0001703]
[1739915203192,0.157811,95050.0,95049.0,0.0001703]
[1739915204266,0.160811,95050.0,95049.0,0.0001703]
[1739915204413,0.157811,95050.0,95049.0,0.0001703]
[1739915204621,0.16758532,95050.0,95049.0,0.0001703]
[1739915206007,0.16558532,95050.0,95049.0,0.0001703]
[1739915206282,0.003,95050.0,95049.0,0.0001703]
[1739915206960,0.167029,95050.0,95049.0,0.0001703]
[1739915207166,0.164029,95050.0,95049.0,0.0001703]
[1739915207565,0.167029,95050.0,95049.0,0.0001703]
[1739915209475,0.17475418,95050.0,95049.0,0.0001703]
[1739915209859,0.39810397,95050.0,95049.0,0.0001703]
[1739915210495,0.32475418,95050.0,95049.0,0.0001703]
[1739915213035,0.32575418,95050.0,95049.0,0.0001703]
[1739915215785,0.151,95049.0,95033.0,0.0001703]
[1739915216051,0.16694318,95050.0,95031.0,0.00013159]
[1739915216052,0.15,95033.0,95031.0,0.00013159]
[1739915216244,0.307841,95032.0,95031.0,0.00013159]
[1739915217630,0.310841,95032.0,95031.0,0.00013159]
[1739915218889,0.307873,95013.0,95012.0,0.0001702]
[1739915219713,0.32319528,95013.0,95012.0,0.0001702]
[1739915221393,0.34160384,95013.0,95012.0,0.0001702]
[1739915221808,0.32319528,95013.0,95012.0,0.0001702]
[1739915221990,0.01532228,95013.0,95012.0,0.0001702]
[1739915222213,60.0,95475.0,95012.0,0.0001702]
[1739915222214,0.031646,95025.0,95012.0,0.15360044]
[1739915222423,0.157838,95034.0,95024.0,0.10380122]
[1739915222629,0.09437949,95045.0,95026.0,0.02]
[1739915222832,0.210455,95032.0,95027.0,0.00482306]
[1739915223037,0.307849,95027.0,95026.0,0.02]
[1739915223238,0.157851,95026.0,95025.0,0.1475]
[1739915223475,0.307851,95026.0,95025.0,0.13232402]
[1739915223808,0.307851,95026.0,95025.0,0.1275]
[1739915224005,0.157851,95026.0,95025.0,0.1275]
[1739915224239,0.157851,95026.0,95025.0,0.13232402]
[1739915224437,0.157851,95026.0,95025.0,0.1275]
[1739915225886,0.157851,95026.0,95014.0,0.08380122]
[1739915225887,0.15,95025.0,95015.0,0.0781]
[1739915226081,0.24543209,95026.0,95015.0,0.0781]
[1739915226082,0.307868,95016.0,95015.0,0.0781]
[1739915226313,0.307873,95013.0,95005.0,0.0452]
[1739915226450,0.307873,95013.0,95004.0,0.0784]
[1739915227288,0.157873,95013.0,95004.0,0.0784]
[1739915227705,0.160873,95013.0,95004.0,0.0784]
[1739915228731,0.16883182,95013.0,95004.0,0.0784]
[1739915228946,0.16583182,95013.0,95004.0,0.0784]
[1739915229362,0.16783182,95013.0,95004.0,0.0784]
[1739915229596,0.16583182,95013.0,95004.0,0.0784]
[1739915230010,0.16683182,95013.0,95004.0,0.0784]
[1739915230416,0.00895882,95013.0,95004.0,0.0775702]
[1739915230622,0.307886,95005.0,95004.0,0.0775702]
[1739915231030,0.02964623,95013.0,95004.0,0.0775702]
[1739915231031,0.02168741,95013.0,95007.0,0.02]
[1739915231249,0.157881,95008.0,95007.0,0.019]
[1739915231457,0.157876,95012.0,95009.0,0.019]
[1739915231663,0.157878,95010.0,95009.0,0.019]
[1739915231840,0.157878,95010.0,95009.0,0.018]
[1739915235282,0.157878,95010.0,95009.0,0.0183406]
[1739915235532,0.157878,95010.0,95009.0,0.0003406]
[1739915236923,0.23111486,95014.0,95009.0,0.0183406]
[1739915236924,0.02061986,95014.0,95009.0,0.0183406]
[1739915237091,0.001,95053.0,95018.0,0.0674]
[1739915237289,0.1258,95054.0,95018.0,0.0674]
[1739915237290,0.157853,95025.0,95024.0,0.018]
[1739915237701,0.157853,95025.0,95024.0,0.02282476]
[1739915237905,0.157863,95019.0,95018.0,0.0684]
[1739915238109,0.157863,95019.0,95018.0,0.0864]
[1739915238316,0.157863,95019.0,95018.0,0.09122763]
[1739915238541,0.15786,95021.0,95018.0,0.09122763]
[1739915238748,0.157861,95020.0,95018.0,0.09122763]
[1739915239559,0.157859,95022.0,95018.0,0.09122763]
[1739915239765,0.15,95026.0,95024.0,0.018]
[1739915239766,0.157853,95025.0,95024.0,0.018]
[1739915240205,0.157853,95025.0,95024.0,0.02282354]
[1739915240657,0.0001703,95031.0,95030.0,0.018]
[1739915240862,0.1580133,95031.0,95030.0,0.02282067]
[1739915244352,0.1580133,95031.0,95030.0,0.00482067]
[1739915244555,0.157851,95026.0,95025.0,0.0948]
[1739915244765,0.157851,95026.0,95025.0,0.1138]
[1739915245169,0.157851,95026.0,95025.0,0.0958]
[1739915245373,0.157851,95026.0,95025.0,0.0768]
[1739915245858,0.0001703,95031.0,95018.0,0.1285]
[1739915246091,0.157876,95011.0,95010.0,0.0791]
[1739915247071,0.157876,95011.0,95010.0,0.0971]
[1739915247271,0.210451,95034.0,95010.0,0.0971]
[1739915247272,0.16508086,95033.0,95021.0,0.018]
[1739915247479,0.157856,95023.0,95022.0,0.018]
[1739915247693,0.307856,95023.0,95022.0,0.018]
[1739915248109,0.307856,95023.0,95022.0,0.0936]
[1739915248110,0.15,95023.0,95022.0,0.0936]
[1739915248321,0.369416,95023.0,95022.0,0.0936]
[1739915248525,0.307856,95023.0,95022.0,0.0936]
[1739915249268,0.05181469,95023.0,95022.0,0.0936]
[1739915249531,0.157864,95018.0,95017.0,0.019]
[1739915251286,0.157864,95018.0,95009.0,0.0003406]
[1739915251287,0.307878,95010.0,95009.0,0.0003406]
[1739915251584,0.157893,95001.0,94990.0,0.0776]
[1739915251785,0.307893,95001.0,94990.0,0.0776]
[1739915252505,0.307893,95001.0,94983.0,0.018]
[1739915252915,0.30802469,95001.0,94983.0,0.018]
[1739915253130,0.31002469,95001.0,94983.0,0.018]
[1739915253332,0.30802469,95001.0,94983.0,0.018]
[1739915253531,0.31002469,95001.0,94983.0,0.018]
[1739915253735,0.34987139,95001.0,94983.0,0.018]
[1739915253952,0.31002469,95001.0,94983.0,0.018]
[1739915254543,0.33060022,95001.0,94981.0,0.0003404]
[1739915254731,0.33060022,95001.0,94983.0,0.018]
[1739915255373,0.157919,94985.0,94984.0,0.01281466]
[1739915255795,0.157919,94985.0,94984.0,0.01765738]
[1739915256009,0.0157919,94985.0,94956.0,0.0785]
[1739915256226,0.157971,94954.0,94953.0,0.0183406]
[1739915256441,0.157968,94956.0,94955.0,0.018]
[1739915256649,0.157968,94956.0,94953.0,0.0003406]
[1739915256650,0.157971,94954.0,94953.0,0.0183406]
[1739915257067,0.157971,94954.0,94953.0,0.0003406]
[1739915257500,0.307971,94954.0,94953.0,0.0003406]
[1739915257714,0.30810259,94954.0,94953.0,0.0003406]
[1739915258350,0.30810259,94954.0,94953.0,0.13984425]
[1739915258351,0.00013159,94954.0,94953.0,0.13984425]
[1739915258555,0.00013159,94954.0,94953.0,0.22349727]
[1739915258758,0.00013159,94954.0,94953.0,0.22244425]
[1739915259159,0.00013159,94954.0,94953.0,0.20444425]
[1739915259358,0.00013159,94954.0,94953.0,0.1199406]
[1739915259764,0.00013159,94954.0,94953.0,0.22244425]
[1739915259924,0.00113159,94954.0,94953.0,0.22244425]
[1739915260336,0.00113159,94954.0,94953.0,0.38041625]
[1739915260757,0.09437949,95015.0,94953.0,0.38041625]
[1739915260758,0.09437949,95015.0,94996.0,0.018]
[1739915261106,0.17928676,94997.0,94996.0,0.018]
[1739915261308,0.04713833,95013.0,94996.0,0.018]
[1739915261439,0.210523,95002.0,94996.0,0.018]
[1739915261647,0.157899,94997.0,94996.0,0.018]
[1739915261845,0.157899,94997.0,94996.0,0.017]
[1739915262652,0.157879,95009.0,95003.0,0.017]
[1739915262859,0.210502,95011.0,95006.0,0.017]
[1739915263067,0.15,95010.0,95006.0,0.016]
[1739915263276,0.307883,95007.0,95006.0,0.016]
[1739915263682,0.157883,95007.0,95006.0,0.016]
[1739915266114,0.04713833,95013.0,95012.0,0.016]
[1739915266319,0.04713833,95013.0,95012.0,0.1128]
[1739915266478,0.00013211,95013.0,95012.0,0.1128]
[1739915267573,0.21051,95008.0,95002.0,0.0778]
[1739915267759,0.21051,95008.0,94921.0,0.08380122]
[1739915267760,0.157921,94984.0,94983.0,0.1399]
[1739915267954,0.157921,94984.0,94983.0,0.24240365]
[1739915268157,0.157921,94984.0,94983.0,0.1128]
[1739915268366,0.15,94983.0,94977.0,0.016]
[1739915268572,0.06156,94982.0,94958.0,0.016]
[1739915268801,0.157971,94954.0,94953.0,0.0003406]
[1739915269028,0.307971,94954.0,94953.0,0.0003406]
[1739915269219,0.307971,94954.0,94953.0,0.0007805]
[1739915269426,0.300771,94954.0,94953.0,0.0007805]
[1739915270056,0.301771,94954.0,94953.0,0.0007805]
[1739915272070,0.31594065,94954.0,94953.0,0.0007805]
[1739915272920,0.31494065,94954.0,94953.0,0.0007805]
[1739915273149,0.31594065,94954.0,94953.0,0.0007805]
[1739915273387,0.31494065,94954.0,94953.0,0.0007805]
[1739915273796,0.31594065,94954.0,94953.0,0.0007805]
[1739915273997,0.31494065,94954.0,94953.0,0.0007805]
[1739915274458,0.31494065,94954.0,94953.0,0.0002805]
[1739915275344,0.31594065,94954.0,94953.0,0.0002805]
[1739915277617,0.17314065,94954.0,94953.0,0.0352805]
[1739915278578,0.17214065,94954.0,94953.0,0.0352805]
[1739915278947,0.17314065,94954.0,94953.0,0.0352805]
[1739915279393,0.001,94954.0,94953.0,0.0352805]
[1739915279593,0.002,94954.0,94953.0,0.13778415]
[1739915279799,0.002,94954.0,94953.0,0.21548415]
[1739915279980,0.002,94954.0,94953.0,0.21448415]
[1739915280192,0.002,94954.0,94953.0,0.37245615]
[1739915280393,0.09437949,95008.0,94953.0,0.37245615]
[1739915280394,0.01436896,94963.0,94962.0,0.1922375]
[1739915280637,0.3242,94998.0,94981.0,0.0152805]
[1739915280869,0.09437949,95008.0,94981.0,0.0152805]
[1739915280870,0.307924,94982.0,94981.0,0.0152805]
[1739915281135,0.157924,94982.0,94981.0,0.0152805]
[1739915281397,0.15,94975.0,94964.0,0.0152805]
[1739915281625,0.157962,94959.0,94958.0,0.019]
[1739915281879,0.15,94978.0,94923.0,0.546]
[1739915281880,0.307947,94968.0,94967.0,0.0152805]
[1739915282337,0.157947,94968.0,94967.0,0.0152805]
[1739915282557,0.0169422,94982.0,94981.0,0.0152805]
[1739915282770,0.0139422,94982.0,94981.0,0.0342805]
[1739915282981,0.1718662,94982.0,94981.0,0.0342805]
[1739915283208,0.210506,95009.0,94990.0,0.0152805]
[1739915283419,0.02,95013.0,94993.0,0.0152805]
[1739915283624,0.157904,94994.0,94993.0,0.0152805]
[1739915283831,0.157903,94995.0,94994.0,0.0152805]
[1739915284202,0.17183809,94995.0,94994.0,0.0152805]
[1739915284409,0.307904,94994.0,94993.0,0.019]
[1739915284581,0.157947,94968.0,94967.0,0.0162805]
[1739915284996,0.15,94993.0,94983.0,0.0152805]
[1739915285210,0.307911,94990.0,94989.0,0.0152805]
[1739915286084,0.15,94980.0,94972.0,0.0152805]
[1739915286284,0.15,94989.0,94961.0,0.0152805]
[1739915286492,0.157969,94955.0,94954.0,0.12150365]
[1739915286649,0.157969,94955.0,94954.0,0.13678415]
[1739915286847,0.157969,94955.0,94954.0,0.12150365]
[1739915287046,0.157969,94955.0,94954.0,0.13678415]
[1739915287253,0.157969,94955.0,94954.0,0.12150365]
[1739915287459,0.15,94964.0,94954.0,0.0342805]
[1739915287686,0.15,94970.0,94954.0,0.0342805]
[1739915287893,0.157969,94955.0,94954.0,0.0342805]
[1739915289144,0.157969,94955.0,94954.0,0.0332805]
[1739915289366,0.210622,94957.0,94954.0,0.0372805]
[1739915289585,0.15,94962.0,94954.0,0.0372805]
[1739915289789,0.157959,94961.0,94960.0,0.017]
[1739915289951,0.307959,94961.0,94960.0,0.017]
[1739915290392,0.307959,94961.0,94960.0,0.016]
[1739915290546,0.307959,94961.0,94960.0,0.0152805]
[1739915290756,0.15,94961.0,94958.0,0.0152805]
[1739915290959,0.157962,94959.0,94958.0,0.0152805]
[1739915291161,0.157962,94959.0,94958.0,0.0312805]
[1739915291476,0.157962,94959.0,94958.0,0.0152805]
[1739915291842,0.307971,94954.0,94953.0,0.0001704]
[1739915294243,0.308971,94954.0,94953.0,0.0001704]
[1739915295207,0.308971,94954.0,94953.0,0.0154509]
[1739915295546,0.308971,94954.0,94953.0,0.0001704]
[1739915297292,0.308971,94954.0,94953.0,0.0001224]
[1739915297678,0.001,94954.0,94953.0,0.0001224]
[1739915297880,0.158971,94954.0,94953.0,0.0001224]
[1739915298081,0.17999814,94954.0,94953.0,0.0001224]
[1739915298688,0.157974,94952.0,94948.0,0.016]
[1739915298886,0.0014376,94953.0,94948.0,0.0152]
[1739915299102,0.157979,94949.0,94948.0,0.0152]
[1739915300542,0.157979,94949.0,94948.0,0.0162]
[1739915300921,0.17233705,94949.0,94948.0,0.0162]
[1739915302772,0.32233705,94949.0,94948.0,1e-06]
[1739915302980,0.32233705,94949.0,94929.0,0.0793408]
[1739915302981,0.158004,94934.0,94929.0,0.0003408]
[1739915303185,0.158011,94930.0,94929.0,0.0003408]
[1739915304236,0.15845118,94930.0,94929.0,0.0003408]
[1739915305614,0.15845118,94930.0,94929.0,0.0166213]
[1739915305982,0.15845118,94930.0,94929.0,0.0013408]
[1739915307802,0.15845118,94930.0,94929.0,0.0003408]
[1739915308051,0.16045118,94930.0,94929.0,0.0003408]
[1739915308815,0.15845118,94930.0,94929.0,0.0003408]
[1739915309280,0.16045118,94930.0,94929.0,0.0003408]
[1739915309718,0.16245118,94930.0,94929.0,0.0003408]
[1739915311251,0.15845118,94930.0,94929.0,0.0003408]
[1739915311468,0.16045118,94930.0,94929.0,0.0003408]
[1739915312296,0.15845118,94930.0,94929.0,0.0003408]
[1739915312710,0.15945118,94930.0,94929.0,0.0003408]
[1739915312947,0.15845118,94930.0,94929.0,0.0003408]
[1739915313491,0.15845118,94930.0,94913.0,0.000341]
[1739915313492,0.15044018,94930.0,94913.0,0.000341]
[1739915313699,0.158037,94914.0,94913.0,0.000341]
[1739915314111,0.158037,94914.0,94913.0,0.015541]
[1739915314378,0.15144018,94930.0,94915.0,0.0152]
[1739915314584,0.15144018,94930.0,94927.0,0.0152]
[1739915314585,0.00144018,94930.0,94927.0,0.0152]
[1739915314714,0.01580829,94930.0,94929.0,0.0152]
[1739915314919,0.15945118,94930.0,94929.0,0.0122]
[1739915315124,0.00044018,94930.0,94916.0,0.132]
[1739915315359,0.158034,94916.0,94915.0,0.0122]
[1739915315530,0.158034,94916.0,94915.0,0.0092]
[1739915316598,0.158037,94914.0,94913.0,0.000341]
[1739915316759,0.158037,94914.0,94913.0,6.176e-05]
[1739915317391,0.158037,94914.0,94913.0,0.00926176]
[1739915318100,0.158037,94914.0,94913.0,0.01226176]
[1739915318310,0.158037,94914.0,94913.0,0.00926176]
[1739915318714,0.158037,94914.0,94913.0,0.01107554]
[1739915318914,0.158037,94914.0,94913.0,0.01007554]
[1739915319329,0.158029,94919.0,94918.0,0.00807554]
[1739915319769,0.158029,94919.0,94918.0,0.00707554]
[1739915320172,0.158035,94916.0,94915.0,0.00707554]
[1739915321481,0.158034,94916.0,94915.0,0.001]
[1739915321696,0.158041,94912.0,94911.0,0.0002]
[1739915321865,0.158041,94912.0,94911.0,0.00718249]
[1739915322810,0.158038,94914.0,94911.0,0.00718249]
[1739915323044,0.158038,94914.0,94913.0,0.00707554]
[1739915323252,0.210674,94934.0,94913.0,0.00707554]
[1739915323253,0.15,94929.0,94913.0,0.00707554]
[1739915323456,0.17869916,94914.0,94913.0,0.00707554]
[1739915324229,0.17869916,94914.0,94913.0,0.00907554]
[1739915324577,0.17869916,94914.0,94913.0,0.00707554]
[1739915324782,0.17869916,94914.0,94913.0,0.00907554]
[1739915325010,0.17869916,94914.0,94913.0,0.00707554]
[1739915325419,0.17869916,94914.0,94913.0,0.00907554]
[1739915325968,0.02066216,94914.0,94913.0,0.00907554]
[1739915326197,0.01478695,94930.0,94913.0,0.00907554]
[1739915326198,0.01478695,94930.0,94913.0,0.19538041]
[1739915326396,0.00044018,94930.0,94929.0,0.08787554]
[1739915326612,0.00044018,94930.0,94929.0,0.19037919]
[1739915326825,0.00044018,94930.0,94929.0,0.3987445]
[1739915327035,0.00044018,94930.0,94929.0,0.39769119]
[1739915328104,0.00044018,94930.0,94929.0,0.57069119]
[1739915328728,0.00144018,94930.0,94929.0,0.57669119]
[1739915330008,0.00044018,94930.0,94929.0,0.58390166]
[1739915330443,0.00144018,94930.0,94929.0,0.58990166]
[1739915331068,0.00144018,94930.0,94929.0,0.57669119]
[1739915331476,0.00144018,94930.0,94929.0,0.90129119]
[1739915333270,0.00144018,94930.0,94929.0,0.9147298]
[1739915334063,0.00044018,94930.0,94929.0,1.4944298]
[1739915334219,0.000341,94948.0,94947.0,0.44165754]
[1739915334432,0.000341,94948.0,94947.0,0.91076119]
[1739915334641,0.210554,94988.0,94952.0,0.35404954]
[1739915334846,0.0139544,95007.0,94952.0,0.60615319]
[1739915335053,0.30492849,94990.0,94952.0,0.60615319]
[1739915335262,0.09437949,94990.0,94952.0,0.60615319]
[1739915335469,0.01326702,94984.0,94952.0,0.60615319]
[1739915335696,0.09437949,94990.0,94989.0,0.00607554]
[1739915335898,0.09451155,94990.0,94989.0,0.26649219]
[1739915336977,0.00013206,94990.0,94989.0,0.26949219]
[1739915337189,0.00013206,94990.0,94989.0,0.41949219]
[1739915337400,0.00013206,94990.0,94989.0,0.78409219]
[1739915337616,0.00013206,94990.0,94989.0,0.78909219]
[1739915338267,0.00013206,94990.0,94989.0,0.59001665]
[1739915338471,0.00013206,94990.0,94989.0,0.59609219]
[1739915338678,0.00013206,94990.0,94989.0,0.59001665]
[1739915339088,0.00013206,94990.0,94989.0,0.42710365]
[1739915339299,0.00013206,94990.0,94989.0,0.43317919]
[1739915339510,0.00013206,94990.0,94989.0,0.43917919]
[1739915339764,0.00013206,94990.0,94989.0,0.43317919]
[1739915340002,0.00013206,94990.0,94989.0,0.11557919]
[1739915340281,0.00013206,94990.0,94989.0,0.10857919]
[1739915340449,0.00013206,94990.0,94989.0,0.26649219]
[1739915340688,0.00013206,94990.0,94989.0,0.44649219]
[1739915340886,0.00013206,94990.0,94989.0,0.43949219]
[1739915341925,0.00013206,94990.0,94989.0,0.10250365]
[1739915342069,0.00013206,94990.0,94989.0,0.26041665]
[1739915342264,0.00013206,94990.0,94989.0,0.26649219]
[1739915342572,0.00013206,94990.0,94989.0,0.26641665]
[1739915342778,0.00013206,94990.0,94989.0,0.26649219]
[1739915342978,0.00013206,94990.0,94989.0,0.26041665]
[1739915343221,0.00013206,94990.0,94989.0,0.11557919]
[1739915343424,0.15804306,94990.0,94989.0,0.10250365]
[1739915343832,0.15804306,94990.0,94989.0,0.10950365]
[1739915344036,0.00013206,94990.0,94989.0,0.10857919]
[1739915344411,0.00013206,94990.0,94989.0,0.11557919]
[1739915345293,0.00013206,94990.0,94989.0,0.10950365]
[1739915345445,0.15804306,94990.0,94989.0,0.10950365]
[1739915345657,0.00013206,94990.0,94989.0,0.00607554]
[1739915345858,0.15804306,94990.0,94989.0,0.00907554]
[1739915346053,0.15804306,94990.0,94989.0,0.00607554]
[1739915346054,0.17139029,94990.0,94989.0,0.00607554]
[1739915346488,0.157926,94981.0,94976.0,0.3246]
[1739915346689,0.368487,94983.0,94982.0,0.00607554]
[1739915346891,0.157918,94986.0,94982.0,0.10857919]
[1739915347096,0.157918,94986.0,94983.0,0.10250365]
[1739915347293,0.01381969,94990.0,94989.0,0.00607554]
[1739915347294,0.38228069,94990.0,94989.0,0.00607554]
[1739915347494,0.01381969,94990.0,94989.0,0.00607554]
[1739915348042,0.00047246,94990.0,94989.0,0.10857919]
[1739915348449,0.00047246,94990.0,94989.0,0.26649219]
[1739915348884,0.00047246,94990.0,94989.0,0.10857919]
[1739915349021,0.00047246,94990.0,94989.0,0.26649219]
[1739915350409,0.00047246,94990.0,94989.0,0.26949219]
[1739915350641,0.00047246,94990.0,94989.0,0.26649219]
[1739915350840,0.00047246,94990.0,94989.0,0.27149219]
[1739915351039,0.00047246,94990.0,94989.0,0.11357919]
[1739915351255,0.00047246,94990.0,94989.0,0.27149219]
[1739915356533,0.00047246,94990.0,94989.0,0.11357919]
[1739915356757,0.00047246,94990.0,94989.0,0.10750365]
[1739915356958,0.15838346,94990.0,94989.0,0.10750365]